bitfinex/quotes_ETHUSD_20210401
["timestamp","ask_amount","ask_price","bid_price","bid_amount"]
[1617303138336,0.38,1967.1,1966.4,15.17973]
[1617303138736,0.38,1967.1,1966.4,10.16973]
[1617303139542,0.38,1967.1,1966.3,0.28]
[1617303139742,0.38,1967.1,1966.2,5.01]
[1617303139942,13.55084778,1967.1,1966.2,5.01]
[1617303140145,8.0094,1967.1,1966.2,5.01]
[1617303140343,0.38,1967.1,1966.1,11.4502]
[1617303140541,9.73609778,1967.1,1966.1,11.1702]
[1617303140766,17.44670748,1967.1,1966.1,11.5602]
[1617303140970,1.1239,1967.2,1966.8,0.39]
[1617303141372,2.55,1967.3,1966.9,1.2]
[1617303141772,2.55,1967.3,1967.1,1.2]
[1617303142168,2.55,1967.3,1967.1,11.36441]
[1617303142370,2.55,1967.3,1967.2,16.31]
[1617303142568,2.55,1967.3,1967.2,16.71]
[1617303142775,2.55,1967.3,1967.2,20.73]
[1617303142971,2.55,1967.3,1967.2,26.7953]
[1617303143396,2.55,1967.3,1967.2,27.96097175]
[1617303144197,5.1,1967.3,1967.2,23.94097175]
[1617303145794,5.1,1967.3,1967.2,23.89097175]
[1617303146014,5.1,1967.3,1967.2,23.84097175]
[1617303146217,5.1,1967.3,1967.2,40.62505175]
[1617303146417,0.6404,1967.3,1967.2,40.62505175]
[1617303146615,0.6404,1967.3,1967.2,40.79595732]
[1617303147017,0.6404,1967.3,1967.2,29.49595732]
[1617303147217,0.6404,1967.3,1967.2,22.47595732]
[1617303147417,0.6404,1967.3,1967.2,15.07408]
[1617303147817,0.6404,1967.3,1967.1,10.16441]
[1617303148641,0.6404,1967.3,1967.2,0.38]
[1617303149042,0.6404,1967.3,1967.2,1.58]
[1617303149242,0.6404,1967.3,1967.2,6.59]
[1617303149641,0.0001,1967.3,1967.2,6.59]
[1617303149843,0.0001,1967.3,1967.2,17.75311]
[1617303150445,0.0001,1967.3,1967.2,18.91878175]
[1617303150845,0.0001,1967.3,1967.2,17.71878175]
[1617303151045,0.0001,1967.3,1967.2,12.70878175]
[1617303151266,0.0001,1967.3,1967.2,24.80878175]
[1617303151665,2.5501,1967.3,1967.2,13.90878175]
[1617303151866,2.5501,1967.3,1967.2,12.70878175]
[1617303152299,2.5501,1967.3,1967.2,9.16878175]
[1617303152494,2.5501,1967.3,1967.2,8.78878175]
[1617303152695,2.5501,1967.3,1967.2,7.62311]
[1617303153299,15.9001,1967.3,1967.2,7.62311]
[1617303153501,15.9001,1967.3,1967.0,1.16567175]
[1617303153699,29.15,1967.2,1966.7,0.39]
[1617303153914,3.62835001,1967.1,1966.2,12.70859]
[1617303154113,3.62835001,1967.1,1965.9,12.71038]
[1617303154114,18.15360971,1967.1,1965.9,12.71038]
[1617303154316,14.6652597,1967.1,1965.8,8.79107935]
[1617303154513,19.36449386,1967.1,1965.8,8.79107935]
[1617303154713,19.36449386,1967.1,1965.9,7.63017]
[1617303154714,29.53764386,1967.1,1965.9,7.63017]
[1617303154911,26.0384097,1967.1,1965.8,8.79107935]
[1617303155111,26.0384097,1967.1,1965.8,9.19107935]
[1617303155310,29.8532197,1967.1,1965.8,9.19107935]
[1617303155512,15.32796,1967.1,1965.8,9.19107935]
[1617303155712,17.3628764,1967.1,1966.0,7.63019]
[1617303156925,17.3628764,1967.1,1966.1,1.39]
[1617303157126,1.34,1967.1,1966.2,0.4]
[1617303157724,0.14,1967.1,1966.2,0.4]
[1617303157927,0.14,1967.1,1966.3,0.308]
[1617303158125,0.14,1967.1,1966.3,0.718]
[1617303158532,0.14,1967.1,1966.2,10.17202]
[1617303159140,2.69,1967.1,1966.2,10.17202]
[1617303159340,2.69,1967.1,1966.2,10.57202]
[1617303159545,2.69,1967.1,1966.1,1.0]
[1617303159546,7.70508,1967.1,1966.1,1.0]
[1617303159746,29.15,1967.0,1965.6,12.71224]
[1617303159946,29.15,1967.0,1965.1,1.0]
[1617303159947,31.2,1966.8,1965.1,1.0]
[1617303160150,36.34,1966.6,1965.1,1.0]
[1617303160347,1.34,1966.2,1965.1,1.0]
[1617303160545,1.2,1966.0,1965.1,1.0]
[1617303160948,7.63482,1965.8,1965.1,1.0]
[1617303161149,7.63482,1965.8,1965.1,1.4]
[1617303161544,5.79999292,1965.9,1965.1,1.0]
[1617303161782,22.96217162,1966.1,1965.1,1.0]
[1617303161982,22.96217162,1966.1,1965.1,1.39]
[1617303162784,24.16217162,1966.1,1965.1,1.0]
[1617303163182,7.63469,1965.9,1965.1,1.0]
[1617303164795,24.16217162,1966.1,1965.3,0.4]
[1617303164796,15.12625,1966.1,1965.3,0.4]
[1617303164997,1.1303,1966.1,1965.3,0.68]
[1617303165197,0.14,1966.2,1965.5,0.38]
[1617303165396,0.14,1966.2,1965.3,0.68]
[1617303165597,29.1,1966.1,1965.1,1.0]
[1617303165799,29.1,1966.1,1965.1,0.62218713]
[1617303165800,0.4,1965.7,1965.1,0.62218713]
[1617303166196,39.27936,1966.1,1965.1,0.62218713]
[1617303166402,29.1,1966.1,1965.1,0.62218713]
[1617303166597,31.65,1966.1,1965.1,0.62218713]
[1617303167021,39.28373,1966.1,1965.1,0.62218713]
[1617303168421,0.41,1965.9,1965.1,0.62218713]
[1617303169028,0.38,1965.8,1965.1,0.62218713]
[1617303169649,8.0149,1965.8,1965.1,0.62218713]
[1617303169849,13.73904038,1965.8,1965.1,0.62218713]
[1617303170252,7.6349,1965.8,1965.1,0.62218713]
[1617303170646,8.0349,1965.8,1965.1,0.62218713]
[1617303170846,35.4697,1965.8,1965.1,0.62218713]
[1617303171047,35.0697,1965.8,1965.1,0.62218713]
[1617303171247,7.63614,1965.6,1965.1,0.62218713]
[1617303171448,17.76174,1965.6,1965.1,0.62218713]
[1617303171650,13.94367,1965.6,1965.1,0.62218713]
[1617303171848,10.1256,1965.6,1965.1,1.02218713]
[1617303172468,9.3376,1965.6,1965.1,1.02218713]
[1617303172669,10.329,1965.6,1965.1,0.62218713]
[1617303173072,10.329,1965.6,1964.6,6.70250207]
[1617303173073,19.75,1965.5,1964.6,6.70250207]
[1617303173270,20.25132494,1965.5,1964.7,0.39]
[1617303173471,20.25132494,1965.5,1964.6,6.84250207]
[1617303173472,0.4,1965.3,1964.6,6.84250207]
[1617303174070,2.55,1965.3,1964.6,6.84250207]
[1617303174274,2.55,1965.3,1964.6,6.70250207]
[1617303174674,2.55,1965.3,1964.4,0.39]
[1617303174908,2.55,1965.3,1964.3,13.799]
[1617303174909,0.39,1965.0,1964.3,13.799]
[1617303175104,0.39,1965.0,1964.3,14.199]
[1617303175303,0.28,1965.1,1964.3,21.83493]
[1617303175504,0.28,1965.1,1964.3,8.03593]
[1617303175704,0.09132494,1965.0,1964.6,0.41]
[1617303175903,0.37132494,1965.1,1964.6,0.41]
[1617303176102,0.37132494,1965.1,1964.5,0.41]
[1617303176302,0.37132494,1965.1,1964.6,0.41]
[1617303176503,0.09132494,1965.2,1964.6,0.41]
[1617303176706,0.09132494,1965.2,1964.8,0.38]
[1617303177102,0.09132494,1965.2,1964.7,0.41]
[1617303177528,0.09132494,1965.2,1964.5,10.31914]
[1617303177725,0.09132494,1965.2,1964.6,0.41]
[1617303178124,0.09132494,1965.2,1964.6,1.56]
[1617303178325,0.49132494,1965.2,1964.5,10.31914]
[1617303178526,0.49132494,1965.2,1964.5,10.71914]
[1617303178726,0.49132494,1965.2,1964.5,0.54]
[1617303178727,1.51392325,1965.2,1964.5,0.54]
[1617303179929,0.09132494,1965.0,1964.5,0.54]
[1617303180345,0.09132494,1965.0,1964.5,0.4]
[1617303181345,7.72803494,1965.0,1964.5,0.4]
[1617303181550,0.49132494,1964.8,1964.1,1.0]
[1617303181751,23.13,1964.2,1964.1,1.0]
[1617303182152,30.7269,1964.2,1963.6,2.0848762]
[1617303182353,5.66661156,1964.1,1963.6,2.0848762]
[1617303183177,0.09132494,1964.1,1963.6,2.0848762]
[1617303183373,29.1,1964.0,1963.1,0.6000085]
[1617303183577,0.09132494,1963.8,1963.1,0.6000085]
[1617303183774,0.39,1963.3,1963.1,0.6000085]
[1617303183975,6.4948,1963.3,1963.1,0.6000085]
[1617303184175,31.21827648,1963.2,1963.1,0.6000085]
[1617303184375,25.65,1963.2,1963.1,8.5e-06]
[1617303185174,0.4,1963.2,1963.1,8.5e-06]
[1617303185407,7.73149509,1963.3,1963.1,8.5e-06]
[1617303185605,0.49793509,1963.3,1963.1,8.5e-06]
[1617303186406,0.08793509,1963.3,1963.1,8.5e-06]
[1617303186608,0.08793509,1963.3,1963.1,0.3900085]
[1617303186809,0.08793509,1963.3,1963.2,17.68]
[1617303187009,0.08793509,1963.3,1963.2,27.28]
[1617303187209,5.09e-06,1963.3,1963.2,38.5141]
[1617303187413,65.9902,1964.1,1963.2,58.0393597]
[1617303187610,37.9824,1964.1,1963.7,0.41]
[1617303187810,24.258,1964.1,1963.9,0.4]
[1617303188028,2.55,1965.0,1964.0,1.2]
[1617303188425,2.64132494,1965.0,1964.2,1.2]
[1617303188625,2.64132494,1965.0,1964.8,0.39]
[1617303188626,2.55,1965.0,1964.8,0.39]
[1617303189425,0.39,1964.9,1964.3,5.14695116]
[1617303189625,0.48132494,1964.9,1964.3,5.01]
[1617303189826,0.48132494,1964.9,1964.2,0.4]
[1617303190027,0.38,1964.8,1964.3,0.39]
[1617303190424,0.4,1964.7,1964.2,5.01]
[1617303190651,0.09132494,1964.9,1964.2,5.01]
[1617303190853,0.09132494,1964.9,1964.3,5.01]
[1617303191052,0.09132494,1964.9,1964.1,0.41]
[1617303191252,0.09132494,1964.9,1964.2,0.38]
[1617303191253,0.38,1964.8,1964.2,0.38]
[1617303191452,0.144,1964.2,1964.1,6.85]
[1617303191652,0.144,1964.2,1964.1,7.26]
[1617303191851,0.144,1964.2,1964.1,10.2]
[1617303192052,0.144,1964.2,1964.1,3.35]
[1617303192251,0.144,1964.2,1964.1,2.85]
[1617303193274,0.144,1964.2,1964.1,1.2]
[1617303193875,0.144,1964.2,1964.0,5.01]
[1617303194075,0.144,1964.2,1964.0,1.2]
[1617303194275,0.144,1964.2,1964.0,6.21]
[1617303194673,0.144,1964.2,1964.0,6.59]
[1617303195279,0.144,1964.2,1964.0,14.22718]
[1617303195475,0.144,1964.2,1964.1,18.78]
[1617303195676,0.144,1964.2,1964.1,19.98]
[1617303195907,0.144,1964.2,1964.1,31.26]
[1617303196305,0.144,1964.2,1964.1,26.02567175]
[1617303196505,0.144,1964.2,1964.1,7.62567175]
[1617303196506,2.694,1964.2,1964.1,7.62567175]
[1617303196710,2.694,1964.2,1964.1,7.24567175]
[1617303197108,2.694,1964.2,1964.1,6.04567175]
[1617303197333,2.694,1964.2,1964.1,4.88]
[1617303197531,2.694,1964.2,1964.0,9.20998903]
[1617303198134,0.39,1964.8,1964.2,11.5252597]
[1617303198333,0.28,1965.0,1964.7,0.38]
[1617303198546,3.81835,1965.3,1964.7,0.38]
[1617303198744,3.81835,1965.3,1965.0,0.39]
[1617303198948,0.28,1965.4,1965.0,0.34]
[1617303199150,1.02849815,1965.4,1964.4,2.0357471]
[1617303199349,0.294,1965.3,1964.8,0.4]
[1617303199749,1.02849815,1965.4,1965.2,0.39]
[1617303199948,0.28,1965.6,1965.2,0.39]
[1617303200949,30.0,1965.8,1965.2,0.39]
[1617303201151,30.0,1965.8,1965.3,0.4]
[1617303202349,38.31443,1965.9,1965.3,0.4]
[1617303202748,7.91443,1965.9,1965.4,0.41]
[1617303202953,0.28,1965.9,1965.4,0.41]
[1617303203156,0.28,1965.9,1965.5,0.39]
[1617303203352,1.01333576,1966.0,1965.5,0.39]
[1617303203552,1.01333576,1966.0,1965.6,0.41]
[1617303203974,3.56333576,1966.0,1965.4,5.01]
[1617303204174,3.95333576,1966.0,1965.3,5.01]
[1617303204374,0.38,1965.9,1965.3,0.38]
[1617303204577,3.56333576,1966.0,1965.3,13.02234]
[1617303204776,3.56333576,1966.0,1965.5,5.01]
[1617303204979,3.56333576,1966.0,1965.5,6.6]
[1617303205175,3.56333576,1966.0,1965.5,0.39]
[1617303205976,3.56333576,1966.0,1965.5,8.02151]
[1617303206399,3.56333576,1966.0,1965.6,0.41]
[1617303206599,3.56333576,1966.0,1965.7,0.41]
[1617303207000,3.56333576,1966.0,1965.5,8.83151]
[1617303207001,3.56333576,1966.0,1965.8,0.4]
[1617303207401,2.55,1966.0,1965.8,0.4]
[1617303208002,2.55,1966.0,1965.6,0.39]
[1617303208407,2.55,1966.0,1965.7,0.38]
[1617303209421,2.55,1966.0,1965.6,5.01]
[1617303209620,2.96,1966.0,1965.6,4.539514]
[1617303210222,2.96,1966.0,1965.5,1.2]
[1617303210421,2.55,1966.0,1965.5,1.58]
[1617303210622,2.55,1966.0,1965.5,1.59]
[1617303211227,2.55,1966.0,1965.6,0.4]
[1617303211422,5.1,1966.0,1965.6,0.4]
[1617303211848,5.1,1966.0,1965.6,5.41]
[1617303212048,5.1,1966.0,1965.6,6.61]
[1617303213456,5.1,1966.0,1965.7,0.41]
[1617303213655,5.1,1966.0,1965.6,6.21]
[1617303213850,5.1,1966.0,1965.6,6.61]
[1617303214905,5.05,1966.0,1965.8,0.4]
[1617303215106,5.05,1966.0,1965.9,12.0]
[1617303215307,5.05,1966.0,1965.9,17.01]
[1617303215706,5.05,1966.0,1965.9,18.21]
[1617303215905,5.05,1966.0,1965.9,5.41]
[1617303216108,5.05,1966.0,1965.9,4.32]
[1617303216309,5.05,1966.0,1965.9,1.6]
[1617303216506,5.05,1966.0,1965.6,12.64116]
[1617303216707,5.05,1966.0,1965.7,5.39]
[1617303216907,5.05,1966.0,1965.7,0.38]
[1617303217108,5.05,1966.0,1965.9,5.01]
[1617303217308,5.05,1966.0,1965.7,1.58]
[1617303217511,5.05,1966.0,1965.9,8.65]
[1617303217709,5.05,1966.0,1965.9,7.45]
[1617303218111,5.05,1966.0,1965.9,8.65]
[1617303218912,7.6,1966.0,1965.9,8.65]
[1617303219110,5.1585,1966.0,1965.9,8.65]
[1617303219523,5.1585,1966.0,1965.9,21.45]
[1617303219722,5.1585,1966.0,1965.9,31.88532092]
[1617303219922,5.1585,1966.0,1965.9,19.08532092]
[1617303220122,5.1585,1966.0,1965.9,20.25099267]
[1617303220522,5.1585,1966.0,1965.9,14.17567175]
[1617303221123,5.1585,1966.0,1965.9,25.70093145]
[1617303221322,5.1585,1966.0,1965.9,13.01]
[1617303221720,5.1585,1966.0,1965.9,24.5352597]
[1617303221924,5.1085,1966.0,1965.9,4.36]
[1617303222153,5.1085,1966.0,1965.8,7.63087]
[1617303222355,5.1085,1966.0,1965.4,0.4]
[1617303222753,5.1085,1966.0,1965.7,0.39]
[1617303222954,5.1085,1966.0,1965.3,4.59132494]
[1617303223158,5.1085,1966.0,1965.2,21.7006197]
[1617303223159,29.51,1965.6,1965.2,21.7006197]
[1617303223358,29.51,1965.6,1965.2,0.38]
[1617303223359,40.55235,1965.6,1965.2,0.38]
[1617303223556,40.55235,1965.6,1965.1,1.0]
[1617303223557,45.70677,1965.6,1965.1,1.0]
[1617303223754,46.78167,1965.6,1965.1,1.0]
[1617303223960,42.96377,1965.6,1965.1,1.0]
[1617303224180,0.4,1965.5,1965.1,1.0]
[1617303224569,0.41,1965.4,1965.1,1.0]
[1617303224782,42.96402,1965.6,1965.1,1.0]
[1617303224979,0.4,1965.5,1965.1,1.0]
[1617303225180,42.96402,1965.6,1965.1,1.0]
[1617303225381,42.26912,1965.6,1965.1,1.0]
[1617303226179,11.83349,1965.4,1965.1,1.0]
[1617303226380,4.19803,1965.4,1965.1,1.0]
[1617303227398,7.63606,1965.3,1965.1,1.0]
[1617303229001,8.01606,1965.3,1965.1,1.0]
[1617303229201,7.53606,1965.3,1965.1,1.0]
[1617303229408,7.53606,1965.3,1965.1,1.39]
[1617303229605,4.83409263,1965.4,1965.1,1.0]
[1617303229807,1.01606263,1965.4,1965.1,1.0]
[1617303230063,1.01606263,1965.4,1965.3,16.89]
[1617303230279,2.55,1965.6,1965.3,18.09]
[1617303230460,2.55,1965.6,1965.5,29.51]
[1617303230663,2.55,1965.6,1965.5,48.09642]
[1617303230862,2.55,1965.6,1965.5,59.6216797]
[1617303231066,5.1085,1966.0,1965.6,0.09132494]
[1617303231269,5.1085,1966.0,1965.9,17.59]
[1617303231460,5.1085,1966.0,1965.9,7.1056]
[1617303231858,5.1085,1966.0,1965.9,14.44471]
[1617303232260,5.1085,1966.0,1965.9,29.6499697]
[1617303232458,5.1085,1966.0,1965.9,18.12471]
[1617303232657,5.1085,1966.0,1965.9,19.29038175]
[1617303233860,7.6585,1966.0,1965.9,19.29038175]
[1617303234666,7.6585,1966.0,1965.9,18.12471]
[1617303235064,9.66214313,1966.0,1965.9,6.8156]
[1617303235283,9.66214313,1966.0,1965.1,1.0]
[1617303235488,0.4,1965.5,1965.2,0.09132494]
[1617303235683,0.4,1965.5,1965.1,1.0]
[1617303235684,0.38,1965.4,1965.1,1.0]
[1617303235892,29.49,1965.3,1965.1,1.0]
[1617303236088,38.4849,1965.3,1965.1,1.0]
[1617303236288,28.53683,1965.2,1965.1,1.0]
[1617303236480,28.93683,1965.2,1965.1,1.0]
[1617303237079,8.03683,1965.2,1965.1,1.0]
[1617303237282,21.93683,1965.2,1965.1,1.0]
[1617303238308,34.03683,1965.2,1965.1,1.0]
[1617303238506,21.93683,1965.2,1965.1,1.0]
[1617303239307,28.18683,1965.2,1965.1,1.0]
[1617303239706,21.93683,1965.2,1965.1,1.0]
[1617303239909,8.03683,1965.2,1965.1,1.0]
[1617303240306,16.43683,1965.2,1965.1,1.0]
[1617303241340,29.98683,1965.2,1965.1,1.0]
[1617303241538,61.18683,1965.2,1964.1,1.0]
[1617303241744,0.41,1964.5,1964.1,1.0]
[1617303241942,20.6403,1964.2,1964.1,1.0]
[1617303242139,13.0,1964.2,1964.1,1.0]
[1617303242362,21.45,1964.2,1964.1,1.0]
[1617303242763,21.86,1964.2,1964.1,1.0]
[1617303243159,26.75,1964.1,1963.2,0.26530561]
[1617303243368,0.39,1963.6,1963.2,0.26530561]
[1617303243569,0.39,1963.6,1963.1,8.5e-06]
[1617303243570,9.3515,1963.6,1963.1,8.5e-06]
[1617303243763,10.3806354,1963.6,1963.1,8.5e-06]
[1617303244161,9.3515,1963.6,1963.1,8.5e-06]
[1617303244367,0.39,1963.3,1963.1,8.5e-06]
[1617303245980,0.9821,1963.4,1963.1,8.5e-06]
[1617303246178,5.20426,1963.4,1963.1,8.5e-06]
[1617303246580,1.3821,1963.4,1963.1,8.5e-06]
[1617303246780,0.4,1963.2,1962.4,0.4]
[1617303246982,0.39,1963.0,1962.4,0.54]
[1617303247383,0.09132494,1963.2,1962.5,0.41]
[1617303247580,0.28,1963.1,1962.5,0.41]
[1617303247784,0.69,1963.1,1962.5,0.41]
[1617303247980,0.69,1963.1,1962.5,0.39]
[1617303248611,0.69,1963.1,1962.4,0.14]
[1617303248810,0.69,1963.1,1962.4,0.55]
[1617303248811,3.24,1963.1,1962.4,0.55]
[1617303249009,0.38,1963.0,1962.4,0.14]
[1617303249410,3.61672494,1963.1,1962.4,0.14]
[1617303250811,0.41,1962.7,1962.1,1.0]
[1617303251039,0.09132494,1962.8,1962.5,0.39]
[1617303251235,2.55,1963.1,1962.5,8.03298]
[1617303251435,2.55,1963.1,1962.7,1.2]
[1617303251633,2.55,1963.1,1962.6,2.1489342]
[1617303251634,2.55,1963.1,1962.6,13.34493577]
[1617303251833,2.55,1963.1,1962.6,2.25834263]
[1617303252031,0.41633934,1963.6,1962.6,3.45834263]
[1617303252237,3.91203494,1964.1,1963.3,0.4]
[1617303252238,0.38,1963.9,1963.3,0.4]
[1617303252438,0.39,1963.9,1963.3,15.12455]
[1617303252633,1.29132494,1964.2,1963.3,19.38455]
[1617303252634,0.28,1964.0,1963.3,19.38455]
[1617303252833,0.28,1964.0,1963.5,5.01]
[1617303253231,0.67,1964.0,1963.5,5.01]
[1617303253660,0.28,1964.0,1963.5,5.01]
[1617303253859,0.69,1964.0,1963.6,5.01]
[1617303254060,0.41,1963.9,1963.6,5.01]
[1617303254260,10.99,1963.7,1963.4,6.31567175]
[1617303254462,0.39,1963.6,1963.4,6.17567175]
[1617303254863,5.73,1963.5,1963.4,6.17567175]
[1617303255059,5.73,1963.5,1963.0,5.01]
[1617303255060,0.38,1963.5,1963.0,5.01]
[1617303255259,0.28,1963.6,1963.0,5.01]
[1617303255458,0.28,1963.6,1962.9,1.16567175]
[1617303255459,0.39,1963.5,1962.9,1.16567175]
[1617303255866,0.48132494,1963.5,1962.9,1.16567175]
[1617303256063,0.48132494,1963.5,1962.6,0.4]
[1617303256064,0.4,1963.2,1962.6,0.4]
[1617303256286,0.09132494,1963.1,1962.2,0.14]
[1617303256487,0.09132494,1963.1,1962.2,0.55]
[1617303256488,0.4,1962.9,1962.2,0.55]
[1617303256887,0.49132494,1962.9,1962.2,8.19375]
[1617303257087,0.4,1962.9,1962.3,0.34]
[1617303257690,0.4,1962.9,1962.3,0.34714346]
[1617303258292,0.4,1962.9,1962.4,5.01]
[1617303258689,0.41,1962.8,1962.4,5.01]
[1617303258926,0.677,1963.0,1962.4,5.01]
[1617303259327,0.677,1963.0,1962.4,5.39]
[1617303259528,1.29132494,1963.3,1962.4,5.39]
[1617303259728,0.66,1963.2,1962.6,0.38]
[1617303259929,0.75132494,1963.2,1962.6,5.39]
[1617303260130,0.28,1963.2,1962.7,0.38]
[1617303260329,0.28,1963.2,1962.7,0.33]
[1617303260529,0.28,1963.2,1962.6,0.39]
[1617303260730,0.69,1963.2,1962.6,8.03251]
[1617303261129,0.38,1963.3,1962.8,5.01]
[1617303261329,0.4,1963.2,1962.8,5.01]
[1617303261935,0.28,1963.3,1962.8,5.01]
[1617303262137,0.28,1963.3,1963.0,0.4]
[1617303262538,2.64132494,1963.5,1963.0,0.4]
[1617303262739,2.55,1963.5,1963.0,0.4]
[1617303263336,2.55,1963.5,1963.0,5.41]
[1617303263540,2.55,1963.5,1963.0,0.4]
[1617303263736,5.1,1963.5,1963.0,5.41]
[1617303264158,5.1,1963.5,1963.1,7.64069]
[1617303264558,5.1,1963.5,1963.3,14.1443]
[1617303265758,5.1,1963.5,1963.4,5.01]
[1617303266561,5.49,1963.5,1963.3,1.16567175]
[1617303266789,0.35,1963.4,1963.3,1.16567175]
[1617303266988,0.35,1963.4,1963.1,5.01]
[1617303267189,0.35,1963.4,1962.8,5.01]
[1617303267788,5.19132494,1963.5,1963.0,0.4]
[1617303267989,5.1,1963.5,1963.0,0.4]
[1617303268587,5.1,1963.5,1963.1,0.39]
[1617303268793,5.1,1963.5,1963.2,5.01]
[1617303269188,5.51,1963.5,1963.0,5.01]
[1617303269405,5.51,1963.5,1962.8,5.56714128]
[1617303269605,0.4,1963.3,1962.8,5.15714128]
[1617303269807,5.19132494,1963.5,1962.8,5.15714128]
[1617303270007,5.19132494,1963.5,1962.8,5.54714128]
[1617303270208,5.19132494,1963.5,1962.9,5.01]
[1617303270407,5.19132494,1963.5,1962.8,5.54714128]
[1617303270408,0.38,1963.4,1962.8,5.54714128]
[1617303270610,0.38,1963.4,1962.8,5.15714128]
[1617303270611,7.64284,1963.2,1962.8,5.15714128]
[1617303270809,0.4,1963.2,1962.8,5.15714128]
[1617303271009,0.4,1963.2,1962.8,0.00714128]
[1617303271208,2.95,1963.2,1962.8,0.00714128]
[1617303271809,2.55,1963.2,1962.8,0.00714128]
[1617303272234,2.55,1963.2,1962.6,5.06784128]
[1617303272434,0.39,1963.0,1962.6,4.91784128]
[1617303272633,0.38,1963.1,1962.6,4.91784128]
[1617303273237,0.38,1963.1,1962.8,7.64286]
[1617303274236,0.38,1963.1,1963.0,5.01]
[1617303275078,2.83,1963.2,1963.0,5.01]
[1617303275079,2.55,1963.2,1963.0,5.01]
[1617303275279,2.93,1963.2,1963.0,5.01]
[1617303276079,2.55,1963.2,1962.9,5.01]
[1617303276479,0.38,1963.1,1962.9,5.01]
[1617303277281,2.55,1963.2,1962.9,5.01]
[1617303278285,2.55,1963.2,1962.9,12.65242]
[1617303278683,5.1,1963.2,1963.0,5.01]
[1617303278884,5.1,1963.2,1963.1,5.01]
[1617303279083,5.1,1963.2,1963.0,5.01]
[1617303279287,5.1,1963.2,1963.1,5.01]
[1617303280111,5.1,1963.2,1963.1,7.6411]
[1617303280308,5.1,1963.2,1963.1,12.6511]
[1617303280506,5.1,1963.2,1963.1,16.5111]
[1617303281109,5.1,1963.2,1963.1,17.60156509]
[1617303281311,5.1,1963.2,1963.1,15.87677175]
[1617303281512,5.1,1963.2,1963.1,30.22186531]
[1617303281920,44.55123934,1964.6,1963.4,3.81855]
[1617303281921,0.01633934,1964.6,1963.4,3.81855]
[1617303282116,0.01633934,1964.6,1964.3,0.4]
[1617303282319,0.01633934,1964.6,1964.2,0.14]
[1617303282538,0.01633934,1964.6,1964.4,7.63623]
[1617303282735,0.01633934,1964.6,1964.5,5.01]
[1617303282938,0.41633934,1964.6,1964.5,5.01]
[1617303283137,0.41633934,1964.6,1963.1,2.5460161]
[1617303283339,0.41,1963.9,1963.3,0.38]
[1617303283537,0.39,1963.7,1963.2,0.14]
[1617303283736,0.39,1963.8,1963.4,11.22659314]
[1617303283936,0.39,1963.8,1963.2,3.14]
[1617303284137,0.4,1963.4,1962.9,23.95836314]
[1617303284341,1.6,1963.4,1962.3,25.69249314]
[1617303284543,1.6,1963.4,1962.4,0.4]
[1617303284544,0.357,1963.2,1962.4,0.4]
[1617303284737,0.41,1963.0,1962.4,0.4]
[1617303284938,0.41,1963.0,1962.4,8.04426]
[1617303285170,1.03104337,1963.1,1962.5,0.39]
[1617303285373,0.357,1963.2,1962.6,0.38]
[1617303285569,0.09132494,1963.1,1962.6,0.38]
[1617303285771,0.39,1963.1,1962.6,0.38]
[1617303286271,3.97041633,1963.1,1962.6,0.38]
[1617303286671,1.61501633,1963.1,1962.7,0.41]
[1617303286869,0.5846,1963.1,1962.7,0.41]
[1617303287685,0.5846,1963.1,1962.7,5.01]
[1617303288091,0.39,1962.9,1962.7,5.01]
[1617303288293,0.9946,1963.1,1962.7,5.01]
[1617303289091,0.5846,1963.1,1962.7,5.01]
[1617303289491,0.9946,1963.1,1962.7,4.96]
[1617303290530,0.38,1962.9,1962.7,4.96]
[1617303290731,0.5846,1963.1,1962.7,4.96]
[1617303290933,0.4346,1963.1,1962.7,4.96]
[1617303291330,0.4346,1963.1,1962.8,5.01]
[1617303291929,1.4507531,1963.1,1962.8,5.01]
[1617303292333,1.4507531,1963.1,1962.6,0.38]
[1617303292334,1.4507531,1963.1,1962.7,5.01]
[1617303292733,1.4507531,1963.1,1962.6,5.39]
[1617303292932,1.4507531,1963.1,1962.6,0.39]
[1617303293136,1.4507531,1963.1,1962.8,5.01]
[1617303293335,1.4507531,1963.1,1962.7,5.41]
[1617303293535,1.4507531,1963.1,1962.7,5.01]
[1617303293736,4.0007531,1963.1,1962.6,5.4]
[1617303293935,4.0007531,1963.1,1962.6,0.39]
[1617303294135,4.0007531,1963.1,1962.8,5.01]
[1617303294336,4.0007531,1963.1,1962.6,5.4]
[1617303295337,4.0007531,1963.1,1962.7,5.41]
[1617303297165,2.9846,1963.1,1962.9,0.4]
[1617303297365,2.9846,1963.1,1962.8,5.01]
[1617303297766,2.9846,1963.1,1962.8,5.39]